[Event "German-ch Blitz Women 2022"]
[Site "Magdeburg"]
[Date "2022.08.13"]
[Round "1.1"]
[White "Kunze, Kerstin"]
[Black "Paehtz, Elisabeth"]
[Result "0-1"]
[ECO "B51"]
[WhiteElo "2020"]
[BlackElo "2484"]
[Annotator "TA"]
[PlyCount "92"]
[EventDate "2022.08.10"]
[EventType "tourn"]
[EventCountry "GER"]
[SourceTitle "playchess.com"]
[Source "ChessBase"]
[SourceQuality "1"]
[TimeControl "180+2"]

{[%evp 10,92,33,34,55,56,46,34,87,78,104,67,101,88,103,78,147,146,145,145,257,191,189,120,193,179,256,154,170,168,206,174,374,228,226,198,446,435,445,435,627,595,612,610,830,179,170,165,179,175,153,-8,-2,-14,0,0,43,13,13,-21,-28,-20,-16,-17,-23,-50,-57,-35,-26,-136,-15,-81,-81,-354,-293,-1021,-988,-29962,-29956,-29964,-5918,-29979,-29979,-29970,-6303]} 1. e4 {[%emt 0:00:01]} c5 {[%emt 0:00:00]} 2. Nf3 {[%emt 0:00:02]} d6 {[%emt 0:00:01]} 3. Bb5+ {[%emt 0:00:02]} Nd7 {[%emt 0:00:01]} 4. O-O {[%emt 0:00:03]} Ngf6 {[%emt 0:00:02]} 5. Re1 {[%emt 0:00:02]} a6 {[%emt 0:00:02]} 6. Bf1 {[%emt 0:00:06]} g6 {[%emt 0:00:08] B51: Sicilian: Moscow Variation (3 Bb5+) without 3...Bd7.} 7. c3 {[%emt 0:00:02]} Bg7 {[%emt 0:00:04]} 8. d4 {[%emt 0:00:02]} e5 {[%emt 0:00:04]} (8... cxd4 $14 9. cxd4 O-O) 9. dxe5 {[%emt 0:00:11]} dxe5 {[%emt 0:00:01]} 10. Qd6 {[%emt 0:00:23]} Qe7 {[%emt 0:00:03] [#]} 11. Qxe7+ {[%emt 0:00:02]} Kxe7 {[%emt 0:00:01]} 12. Nbd2 {[%emt 0:00:10]} ({Don't take} 12. Bg5 h6 13. Bxf6+ Bxf6 $14) 12... Ne8 {[%emt 0:00:33]} (12... b5 $142) 13. Nc4 $16 {[%emt 0:00:09] [#]} Nc7 $146 {[%emt 0:00:18]} ({Predecessor:} 13... b5 14. Na5 f6 15. a4 bxa4 16. Bc4 Kd6 17. Bd5 Rb8 18. Nd2 Nb6 19. Ndc4+ Nxc4 20. Nxc4+ {1-0 (66) Schauwecker,M (2340)-Szymczak,Z Caracas 1976}) 14. Be3 {[%emt 0:00:14]} b6 {[%emt 0:00:37]} (14... f6 $16 15. a4 Ne6) 15. Red1 {[%emt 0:00:10][%cal Oc4b6]} Ne6 {[%emt 0:00:12]} 16. Rd2 {[%emt 0:00:13]} (16. Ng5 $18) 16... Rd8 {[%emt 0:00:08]} (16... f5 $16) 17. Rad1 $18 {[%emt 0:00:03]} f6 {[%emt 0:00:02]} (17... Bf6 {keeps fighting.} 18. Nxb6 Nxb6) 18. a4 {[%emt 0:00:14][%cal Oc4b6]} Rb8 {[%emt 0:00:01]} 19. Nd6 {[%emt 0:00:07]} Nc7 {[%emt 0:00:14]} 20. g3 {[%emt 0:00:21]} Bb7 $2 {[%emt 0:00:21]} (20... Nf8 {is a better defense.} 21. a5 Bg4) 21. Nh4 {[%emt 0:00:22]} Bc6 {[%emt 0:00:03]} 22. b3 {[%emt 0:00:06]} Nf8 $2 {[%emt 0:00:06] [#]} (22... Ne6 23. Bxa6 Ndf8) 23. Ndf5+ $1 {[%emt 0:00:15][%mdl 512]} gxf5 {[%emt 0:00:06]} 24. Nxf5+ {[%emt 0:00:01]} Kf7 {[%emt 0:00:13]} (24... Ke8 $142 25. Nxg7+ Ke7 26. Nf5+ Ke8 27. Nd6+ Ke7 28. Nf5+ Ke8 29. Nd6+ Ke7 30. Nf5+) 25. Rxd8 {[%emt 0:00:01]} Rxd8 {[%emt 0:00:00]} 26. Rxd8 {[%emt 0:00:01]} Nfe6 {[%emt 0:00:01]} 27. Nxg7 $2 {[%emt 0:00:06]} Nxd8 {[%emt 0:00:03]} 28. Nf5 {[%emt 0:00:00]} Ke8 {[%emt 0:00:07]} 29. Nd6+ {[%emt 0:00:01]} Kd7 {[%emt 0:00:01]} 30. Nf5 {[%emt 0:00:01]} (30. Nc4 $16) 30... Bxe4 $11 {[%emt 0:00:01]} 31. Bh3 {[%emt 0:00:05][%cal Of2f3]} Kc6 {[%emt 0:00:04]} 32. Ne7+ {[%emt 0:00:01]} Kb7 {[%emt 0:00:01]} (32... Kd6 $5 {[%cal Rd6e7]} 33. Nc8+ Kc6 $11) 33. Ng8 {[%emt 0:00:02]} Nd5 {[%emt 0:00:02]} 34. c4 {[%emt 0:00:03]} Nxe3 35. fxe3 {[%mdl 4096] Endgame KBN-KBN} Bc2 {[%emt 0:00:04]} 36. Nxf6 {[%emt 0:00:13]} Bxb3 {[%emt 0:00:01]} 37. Nxh7 {[%emt 0:00:00]} Bxa4 {[%emt 0:00:01] White must now prevent ...a5.} 38. Bg2+ {[%emt 0:00:01]} Kc7 {[%emt 0:00:02]} 39. h4 {[%emt 0:00:01]} (39. Nf6 $11 {remains equal.}) 39... Bc2 {[%emt 0:00:01]} (39... Bb3 $17 {Threatens to win with ...a5.} 40. Ng5 Bxc4) 40. Ng5 {[%emt 0:00:03] [#]} (40. Nf6 $11 {keeps the balance.}) 40... a5 $1 $17 {[%emt 0:00:02] Hoping for ...a4.} 41. h5 $2 {[%emt 0:00:08][%mdl 8192]} (41. Be4 $17 Bd1 42. Kf1) 41... a4 $19 {[%emt 0:00:02] And now ...a3 would win.} 42. Be4 $2 {[%emt 0:00:02] [#]} (42. Ne4 a3 43. Nc3) 42... a3 $1 {[%emt 0:00:09] Strongly threatening ...Bxe4.} 43. h6 {[%emt 0:00:06]} (43. Bxc2 a2) 43... a2 {[%emt 0:00:01]} 44. h7 {[%emt 0:00:05]} a1=Q+ {[%emt 0:00:02]} (44... Bxe4 $142 45. h8=Q a1=Q+ 46. Kf2 Qb2+ 47. Kf1 Qc1+ 48. Ke2 Qc2+ 49. Kf1 Qxc4+ 50. Ke1 Qc1+ 51. Kf2 Qd2+ 52. Kf1 Bd3+ 53. Kg1 Qxe3+ 54. Kh2 Qd2+ 55. Kh1 Qxg5 56. Kg2 Qd2+ 57. Kg1 Qe1+ 58. Kh2 Qf2+ 59. Kh3 Bf1+ 60. Kg4 Qe2+ 61. Kf5 Qf3+ 62. Kg6 Bd3+ 63. Kh6 Nf7+ 64. Kg7 Nxh8 65. Kh6 Qxg3 66. Kh5 Be2+ 67. Kh6 Qg6#) 45. Kh2 {[%emt 0:00:06]} Bxe4 {[%emt 0:00:02]} 46. Nxe4 {[%emt 0:00:04]} Nf7 {[%emt 0:00:01] What a bad dream for White.  Weighted Error Value: White=0.97/Black=0.60} (46... Qa2+ $142 47. Kg1 Qb1+ 48. Kh2 Nf7 49. Nf6 Qc2+ 50. Kg1 Qxc4 51. Ng8 Qc1+ 52. Kf2 Qc2+ 53. Kg1 Qb1+ 54. Kg2 Qxh7 55. Nf6 Qc2+ 56. Kf1 Qf5+ 57. Ke1 Qxf6 58. g4 e4 59. Ke2 Qf3+ 60. Ke1 Qg2 61. g5 Nxg5 62. Kd1 c4 63. Kc1 c3 64. Kd1 Qd2#) 0-1

[Event "German-ch Blitz Women 2022"]
[Site "Magdeburg"]
[Date "2022.08.13"]
[Round "1.2"]
[White "Doll, Rebecca"]
[Black "Rath, Alina"]
[Result "0-1"]
[ECO "B65"]
[WhiteElo "1933"]
[BlackElo "2062"]
[Annotator "NA RC"]
[PlyCount "64"]
[EventDate "2022.08.10"]
[EventType "tourn"]
[EventCountry "GER"]
[SourceTitle "playchess.com"]
[Source "ChessBase"]
[SourceQuality "1"]
[TimeControl "180+2"]

1. e4 {[%emt 0:00:03]} c5 {[%emt 0:00:01]} 2. Nf3 {[%emt 0:00:01]} Nc6 {[%emt 0:00:01]} 3. d4 {[%emt 0:00:02]} cxd4 {[%emt 0:00:01]} 4. Nxd4 {[%emt 0:00:01]} Nf6 {[%emt 0:00:01]} 5. Nc3 {[%emt 0:00:02]} d6 {[%emt 0:00:01]} 6. Bg5 {[%emt 0:00:02]} e6 {[%emt 0:00:01]} 7. Qd3 {[%emt 0:00:03]} Be7 {[%emt 0:00:02]} 8. O-O-O {[%emt 0:00:08]} O-O {[%emt 0:00:02]} 9. f4 {[%emt 0:00:11]} Nxd4 {[%emt 0:00:02]} 10. Qxd4 {[%emt 0:00:02]} Qa5 {[%emt 0:00:02]} 11. Kb1 {[%emt 0:00:25]} Rd8 {[%emt 0:00:04]} 12. Be2 {[%emt 0:00:27]} a6 {[%emt 0:00:31]} 13. Bf3 {[%emt 0:00:44]} Qc7 {[%emt 0:00:33]} 14. Rd2 {[%emt 0:00:16]} h6 {[%emt 0:00:12]} 15. Bh4 {[%emt 0:00:13]} Rb8 {[%emt 0:00:36]} 16. Rhd1 {[%emt 0:00:07]} b5 {[%emt 0:00:01]} 17. e5 {[%emt 0:00:13]} dxe5 {[%emt 0:00:22]} 18. Qxd8+ {[%emt 0:00:05]} Bxd8 {[%emt 0:00:01]} 19. Rxd8+ {[%emt 0:00:01]} Kh7 {[%emt 0:00:02]} 20. Bxf6 {[%emt 0:00:07]} gxf6 {[%emt 0:00:02]} 21. Ne4 {[%emt 0:00:03]} Bb7 {[%emt 0:00:34]} 22. Nxf6+ {[%emt 0:00:03]} Kg6 {[%emt 0:00:01]} 23. Rxb8 {[%emt 0:00:05]} Qxb8 {[%emt 0:00:03]} 24. Nd7 {[%emt 0:00:02]} Qc8 {[%emt 0:00:09]} 25. Nxe5+ {[%emt 0:00:01]} Kg7 {[%emt 0:00:01]} 26. Bxb7 {[%emt 0:00:04]} Qxb7 {[%emt 0:00:01]} 27. Rd7 {[%emt 0:00:03]} Qxg2 {[%emt 0:00:02]} 28. Rxf7+ {[%emt 0:00:02]} Kg8 {[%emt 0:00:01]} 29. a3 Qxh2 {[%emt 0:00:05]} 30. Rf6 {[%emt 0:00:05]} Qh1+ {[%emt 0:00:03]} 31. Ka2 {[%emt 0:00:01]} h5 {[%emt 0:00:01]} 32. Rxe6 {[%emt 0:00:03]} Qd5+ {[%emt 0:00:02]} 0-1

[Event "German-ch Blitz Women 2022"]
[Site "Magdeburg"]
[Date "2022.08.13"]
[Round "1.3"]
[White "Wulf, Constanze"]
[Black "Skibbe, Diana"]
[Result "0-1"]
[ECO "A04"]
[WhiteElo "1835"]
[BlackElo "1943"]
[Annotator "TA"]
[PlyCount "75"]
[EventDate "2022.08.10"]
[EventType "tourn"]
[EventCountry "GER"]
[SourceTitle "playchess.com"]
[Source "ChessBase"]
[SourceQuality "1"]
[TimeControl "180+2"]

{[%evp 9,75,-19,-20,-22,-8,-13,0,-5,-8,-17,8,-13,17,0,26,0,40,-14,37,6,72,77,82,54,51,50,57,13,20,0,0,3,15,0,7,-29,-30,-164,-146,-184,-166,-341,-332,-386,-354,-331,0,-328,-312,-298,-293,-285,-286,-283,-220,-467,-461,-1090,-814,-1733,-1398,-1674,-1243,-1628,-1562,-1403,-1398,-1352]} 1. Nf3 {[%emt 0:00:01]} f5 {[%emt 0:00:01]} 2. b3 {[%emt 0:00:05]} Nf6 {[%emt 0:00:03]} 3. Bb2 {[%emt 0:00:01]} d6 {[%emt 0:00:03]} 4. e3 {[%emt 0:00:11]} e5 {[%emt 0:00:02]} 5. d4 {[%emt 0:00:53]} e4 {[%emt 0:00:05]} 6. Nfd2 {[%emt 0:00:02] A04: Unusual lines after 1 Nf3 and King's Indian Attack.} g6 {[%emt 0:00:02]} 7. c4 {[%emt 0:00:06]} Bg7 {[%emt 0:00:02]} 8. Nc3 {[%emt 0:00:09] The position is equal.} O-O {[%emt 0:00:09]} 9. Be2 {[%emt 0:00:13]} Nc6 {[%emt 0:00:10]} 10. a3 {[%emt 0:00:24]} a5 {[%emt 0:00:02]} 11. Qc2 {[%emt 0:00:06] [#]} h6 $146 {[%emt 0:00:28]} ({Predecessor:} 11... Kh8 12. O-O Bd7 13. Rae1 Ne7 14. d5 c6 15. dxc6 Nxc6 16. Nb5 Qe7 17. Nb1 Rfd8 {0-1 (34) Zegarac,B (2302)-Popovic,D (2435) Subotica 2003}) 12. h4 {[%emt 0:00:02][%cal Bh2h4,Bh4h5][%mdl 32]} Kh7 {[%emt 0:00:09]} 13. O-O-O {[%emt 0:00:11]} (13. h5 $14) 13... d5 {[%emt 0:00:04]} (13... h5 $1 $11) 14. cxd5 {[%emt 0:00:13]} Nxd5 {[%emt 0:00:03]} (14... Ne7 $1 $11 {keeps the balance.}) 15. Nxd5 $16 {[%emt 0:00:04]} Qxd5 {[%emt 0:00:02]} 16. Bc4 {[%emt 0:00:12]} Qd6 {[%emt 0:00:10]} 17. h5 {[%emt 0:00:23][%cal Og2g4] [#] And now g4! would win.} g5 {[%emt 0:00:02]} 18. f3 {[%emt 0:00:07]} exf3 {[%emt 0:00:09]} 19. gxf3 {[%emt 0:00:01]} Ne7 {[%emt 0:00:07][%cal Oa5a4,Bc6e7,Be7d5,Bd5f4][%mdl 32]} 20. Bd3 {[%emt 0:00:05]} Nd5 {[%emt 0:00:08]} 21. Rde1 {[%emt 0:00:03]} Kh8 {[%emt 0:00:10]} 22. e4 {[%emt 0:00:01]} Nf4 {[%emt 0:00:02]} 23. Bc4 {[%emt 0:00:03] White is on the road to losing.} (23. Nc4 $11 Nxd3+ 24. Qxd3 Qf4+ 25. Nd2) 23... c6 $19 {[%emt 0:00:05]} 24. d5 {[%emt 0:00:05]} b5 {[%emt 0:00:09]} (24... cxd5 25. exd5 Bd7 26. a4 $17) 25. Bxg7+ $2 {[%emt 0:00:01]} (25. Bf1 cxd5 26. Bxb5) 25... Kxg7 {[%emt 0:00:03]} 26. Qc3+ {[%emt 0:00:02]} Kh7 {[%emt 0:00:06]} 27. Bf1 {[%emt 0:00:03]} b4 $2 {[%emt 0:00:06]} (27... cxd5 $2 28. Kb1) ({Better is} 27... Qxa3+ $19 28. Qb2 Qd6) 28. Qc4 $2 {[%emt 0:00:06][%mdl 8192]} (28. Qxc6 $11 {and White has nothing to worry.} Qxc6+ 29. dxc6) 28... Ba6 {[%emt 0:00:04]} (28... bxa3 $2 29. Qc3 $19) 29. Qd4 {[%emt 0:00:03]} Bxf1 {[%emt 0:00:03]} (29... bxa3 $2 30. Bxa6 Rxa6 31. Kb1 $19) (29... cxd5 $2 30. exd5 Bxf1 31. Rhxf1 $19) 30. Rhxf1 {[%emt 0:00:01]} c5 {[%emt 0:00:08]} ({Avoid the trap} 30... bxa3 $2 31. exf5 cxd5 32. Kb1) ({And not} 30... Nxh5 31. Nc4 Qf4+ 32. Kb1 $17) (30... cxd5 31. exd5 bxa3 32. Nc4 $17) 31. Qc4 {[%emt 0:00:01]} a4 {[%emt 0:00:06]} 32. bxa4 $2 {[%emt 0:00:02]} (32. Re3) 32... Rxa4 {[%emt 0:00:03] Black is clearly winning.} 33. axb4 (33. Re3 $142 Rfa8 34. Kb1) 33... Rxb4 {[%emt 0:00:03]} 34. Qc3 {[%emt 0:00:02]} Qa6 {[%emt 0:00:09] [#] ( -> ...Rfb8)} 35. exf5 {[%emt 0:00:04]} Nd3+ {[%emt 0:00:07]} 36. Kd1 {[%emt 0:00:04]} Nb2+ {[%emt 0:00:10]} 37. Kc2 {[%emt 0:00:02]} Qa4+ {[%emt 0:00:07]} 38. Kc1 {Weighted Error Value: White=0.98/Black=0.41} 0-1

[Event "German-ch Blitz Women 2022"]
[Site "Magdeburg"]
[Date "2022.08.13"]
[Round "1.4"]
[White "Stangl, Anita"]
[Black "Braun, Kristin"]
[Result "0-1"]
[ECO "B70"]
[WhiteElo "2023"]
[BlackElo "1897"]
[Annotator "NA RC"]
[PlyCount "60"]
[EventDate "2022.08.10"]
[EventType "tourn"]
[EventCountry "GER"]
[SourceTitle "playchess.com"]
[Source "ChessBase"]
[SourceQuality "1"]
[TimeControl "180+2"]

1. e4 c5 2. Nf3 {[%emt 0:00:01]} d6 {[%emt 0:00:01]} 3. d4 {[%emt 0:00:01]} cxd4 {[%emt 0:00:00]} 4. Nxd4 {[%emt 0:00:01]} Nf6 {[%emt 0:00:00]} 5. Nc3 g6 6. Bc4 {[%emt 0:00:03]} Bg7 {[%emt 0:00:01]} 7. O-O {[%emt 0:00:02]} Nc6 {[%emt 0:00:01]} 8. Nde2 {[%emt 0:00:04]} O-O {[%emt 0:00:01]} 9. h3 {[%emt 0:00:01]} a6 {[%emt 0:00:05]} 10. a4 {[%emt 0:00:02]} Be6 {[%emt 0:00:18]} 11. Bxe6 {[%emt 0:00:16]} fxe6 {[%emt 0:00:01]} 12. Bg5 {[%emt 0:00:20]} Rc8 {[%emt 0:00:17]} 13. Rc1 {[%emt 0:00:07]} Qd7 {[%emt 0:00:08]} 14. Qd2 {[%emt 0:00:08]} Ne5 {[%emt 0:00:09]} 15. b3 {[%emt 0:00:01]} Nf7 {[%emt 0:00:10]} 16. Be3 {[%emt 0:00:03]} Rc7 {[%emt 0:00:32]} 17. Rfd1 {[%emt 0:00:02]} Rfc8 {[%emt 0:00:01]} 18. f4 {[%emt 0:00:03]} Nh5 {[%emt 0:00:16]} 19. Bd4 {[%emt 0:00:18]} Bxd4+ {[%emt 0:00:09]} 20. Qxd4 {[%emt 0:00:05]} Nxf4 {[%emt 0:00:05]} 21. Nxf4 {[%emt 0:00:34]} Rxc3 {[%emt 0:00:01]} 22. Qd2 {[%emt 0:00:01]} Ne5 {[%emt 0:00:04]} 23. Qd4 {[%emt 0:00:06]} R8c7 {[%emt 0:00:15]} 24. Rd2 {[%emt 0:00:01]} Qc8 {[%emt 0:00:01]} 25. Kh2 {[%emt 0:00:07]} Rxc2 {[%emt 0:00:04]} 26. Rdxc2 {[%emt 0:00:03]} Rxc2 {[%emt 0:00:00]} 27. Rxc2 {[%emt 0:00:01]} Qxc2 {[%emt 0:00:01]} 28. Nxe6 {[%emt 0:00:01]} Nf3+ {[%emt 0:00:01]} 29. Kg3 {[%emt 0:00:01]} Nxd4 {[%emt 0:00:01]} 30. Nxd4 {[%emt 0:00:01]} Qxe4 {[%emt 0:00:01]} 0-1

[Event "German-ch Blitz Women 2022"]
[Site "Magdeburg"]
[Date "2022.08.13"]
[Round "1.5"]
[White "Falke, Ornella"]
[Black "Grabowski, Petra"]
[Result "1/2-1/2"]
[ECO "C00"]
[WhiteElo "1912"]
[BlackElo "1643"]
[Annotator "TA"]
[PlyCount "115"]
[EventDate "2022.08.10"]
[EventType "tourn"]
[EventCountry "GER"]
[SourceTitle "playchess.com"]
[Source "ChessBase"]
[SourceQuality "1"]
[TimeControl "180+2"]

{[%evp 9,115,17,14,15,31,28,20,11,29,7,17,0,16,-4,43,-17,19,15,54,54,78,61,87,84,70,52,69,58,92,67,81,0,107,97,144,71,80,76,66,72,891,900,1041,1042,1041,1033,1031,1020,1015,1005,997,974,1075,1061,1218,1211,1211,1210,5601,5010,1449,1234,1181,1143,2436,2265,6582,6119,12077,6205,29981,29978,29977,29978,29981,29982,29982,29983,29982,29982,29986,29983,29988,29989,29990,29991,29990,29991,29992,29993,29993,29994,29995,29995,29995,29996,29996,29996,29996,29996,29996,29997,29997,29997,29997,29997,29998,29998]} 1. e4 {[%emt 0:00:02]} e6 {[%emt 0:00:01]} 2. d3 {[%emt 0:00:02]} Nc6 {[%emt 0:00:04]} 3. Nd2 {[%emt 0:00:01]} d5 {[%emt 0:00:05]} 4. Ngf3 {[%emt 0:00:02]} Be7 {[%emt 0:00:06]} 5. g3 {[%emt 0:00:02]} b6 {[%emt 0:00:05]} 6. Bg2 {[%emt 0:00:01] C00: French: Unusual White 2nd moves.} Bb7 {[%emt 0:00:02]} 7. O-O {[%emt 0:00:03]} Nf6 {[%emt 0:00:02]} 8. Re1 {[%emt 0:00:04] The position is equal.} O-O {[%emt 0:00:03]} 9. e5 {[%emt 0:00:10]} Nd7 {[%emt 0:00:12]} 10. Nf1 {[%emt 0:00:02]} Re8 {[%emt 0:00:16] [#]} 11. Bf4 $146 {[%emt 0:00:06]} ({Predecessor:} 11. h4 Nf8 12. N1h2 Nb8 13. Ng4 c5 14. Bg5 Nc6 15. c3 Qd7 16. Qd2 d4 17. c4 {1-0 (36) Mortazavi,A (2333)-Moreira,R (2088) Chess.com INT 2021}) 11... f6 {[%emt 0:00:07]} (11... g5 $11 {is more appropriate.} 12. Be3 Ndxe5) 12. Bh3 {[%emt 0:00:16]} (12. exf6 $14 Bxf6 13. d4) 12... Nf8 {[%emt 0:00:08]} (12... f5 $5 {[%cal Rg7g5]} 13. g4 g5 $11) 13. c3 {[%emt 0:00:29]} fxe5 {[%emt 0:00:03]} 14. Nxe5 {[%emt 0:00:03]} Nxe5 {[%emt 0:00:08]} 15. Bxe5 {[%emt 0:00:04]} Bd6 {[%emt 0:00:09]} 16. d4 {[%emt 0:00:27]} c5 {[%emt 0:00:19]} 17. Qg4 {[%emt 0:00:21][%csl Ge5][%cal Rg4g7] [#]} Bxe5 {[%emt 0:00:18]} 18. Rxe5 {[%emt 0:00:19]} cxd4 {[%emt 0:00:13]} 19. cxd4 {[%emt 0:00:02]} Bc8 {[%emt 0:00:12]} 20. Rae1 {[%emt 0:00:07] White is more active.} (20. Qe2 $16) 20... Qf6 {[%emt 0:00:12]} (20... Ng6 $11) 21. Qe2 $36 {[%emt 0:00:33][%mdl 2048] White is in control.} Ng6 {[%emt 0:00:12]} (21... Qe7 $142) 22. Re3 {[%emt 0:00:01]} (22. Rxd5 $142 Kh8 23. Rd6) 22... Qxd4 {[%emt 0:00:11]} 23. Bxe6+ {[%emt 0:00:02]} Bxe6 {[%emt 0:00:01]} 24. Rxe6 {[%emt 0:00:01]} Qa4 {[%emt 0:00:11][%mdl 8192] A mistake that costs the game.} 25. b3 {[%emt 0:00:04]} Qd7 {[%emt 0:00:15]} 26. Rxe8+ {[%emt 0:00:01]} Rxe8 {[%emt 0:00:02]} 27. Qxe8+ {[%emt 0:00:01]} Qxe8 {[%emt 0:00:03]} 28. Rxe8+ {[%emt 0:00:01]} Kf7 {[%emt 0:00:01]} 29. Ra8 {[%emt 0:00:01]} a5 {[%emt 0:00:01]} 30. Ne3 {[%emt 0:00:01]} d4 {[%emt 0:00:02]} 31. Nd5 {[%emt 0:00:01]} b5 {[%emt 0:00:04]} 32. Rxa5 {[%emt 0:00:01]} Ne5 {[%emt 0:00:01]} 33. Rxb5 {[%emt 0:00:05]} Ke6 {[%emt 0:00:01]} 34. Nf4+ {[%emt 0:00:02]} Kf6 {[%emt 0:00:02]} 35. Rd5 {[%emt 0:00:03]} g5 {[%emt 0:00:03]} 36. Ne2 {[%emt 0:00:04]} d3 {[%emt 0:00:03]} 37. Nc3 {[%emt 0:00:01] Hoping for a4.} d2 {[%emt 0:00:01]} 38. Kf1 {[%emt 0:00:01]} Nf3 {[%emt 0:00:03]} 39. Ke2 {[%emt 0:00:01]} Nxh2 {[%emt 0:00:03]} 40. Rxd2 {[%emt 0:00:02] White mates.} Ng4 {[%emt 0:00:00]} 41. Ne4+ {[%emt 0:00:02]} Ke5 {[%emt 0:00:03]} 42. f3 {[%emt 0:00:01]} Nh6 {[%emt 0:00:03]} 43. Nxg5 {[%emt 0:00:01]} Nf5 {[%emt 0:00:02]} 44. g4 {[%emt 0:00:01]} Nd4+ {[%emt 0:00:01]} 45. Kf2 {[%emt 0:00:02]} h6 {[%emt 0:00:03]} 46. Nf7+ {[%emt 0:00:01]} Kd5 {[%emt 0:00:02]} 47. Ke3 {[%emt 0:00:01]} Ke6 {[%emt 0:00:02]} 48. Nd8+ {[%emt 0:00:02]} Ke7 {[%emt 0:00:02]} 49. Rxd4 {[%emt 0:00:01]} Ke8 {[%emt 0:00:01]} 50. Ke4 {[%emt 0:00:01]} Ke7 {[%emt 0:00:00]} 51. Ke5 {[%emt 0:00:01]} h5 {[%emt 0:00:01]} 52. gxh5 Kf8 53. Rd7 {[%emt 0:00:04]} Ke8 {[%emt 0:00:02] [#]} 54. Ra7 $1 {[%emt 0:00:01]} Kf8 {[%emt 0:00:01]} 55. h6 {[%emt 0:00:02]} Kg8 {[%emt 0:00:00]} 56. Nc6 {[%emt 0:00:10]} Kh8 {[%emt 0:00:01]} 57. Kf6 {[%emt 0:00:03]} Kg8 {[%emt 0:00:01]} 58. Ne5 {[%emt 0:00:08][%mdl 32768] Weighted Error Value: White=0.24 (precise) /Black=0.32. An unexpected result.} 1/2-1/2

[Event "German-ch Blitz Women 2022"]
[Site "Magdeburg"]
[Date "2022.08.13"]
[Round "1.6"]
[White "Kosovska, Olena"]
[Black "Khrapko, Marharyta"]
[Result "0-1"]
[ECO "B23"]
[WhiteElo "1831"]
[BlackElo "2128"]
[Annotator "TA"]
[PlyCount "27"]
[EventDate "2022.08.10"]
[EventType "tourn"]
[EventCountry "GER"]
[SourceTitle "playchess.com"]
[Source "ChessBase"]
[SourceQuality "1"]
[TimeControl "180+2"]

{[%evp 9,27,-15,12,24,43,8,10,1,42,47,65,-9,0,-32,-16,-39,-33,-448,-190,-678]} 1. e4 c5 2. Nc3 Nc6 3. f4 g6 4. Nf3 Bg7 5. Bb5 Qc7 6. d3 {B23: Closed Sicilian: Lines without g3.} e6 7. O-O Nge7 8. Qe1 {The position is equal.} a6 9. Bxc6 Qxc6 {[#]} 10. Kh1 $146 ({White should play} 10. f5 $14) ({Predecessor:} 10. Bd2 b5 11. Rb1 Bb7 12. Qh4 d6 13. Ne2 Qc7 14. Ng3 O-O-O 15. Ne2 d5 16. e5 {1-0 (41) Chu,L (1125)-Haselgrove,M (1434) Perth 2004}) 10... b6 11. a3 Bb7 12. Ne2 a5 13. b4 $2 {[%mdl 8192] [#]} axb4 (13... Bxa1 $142 14. Ne5 Qc7 15. bxc5 bxc5) 14. axb4 $2 {Weighted Error Value: White=0.96/Black=0.56} (14. Ne5 Qa4 15. Be3) 0-1

[Event "German-ch Blitz Women 2022"]
[Site "Magdeburg"]
[Date "2022.08.13"]
[Round "1.7"]
[White "Leveikina, Jevgenija"]
[Black "Daemering, Katrin"]
[Result "1-0"]
[ECO "A41"]
[WhiteElo "2061"]
[BlackElo "1965"]
[Annotator "NA RC"]
[PlyCount "74"]
[EventDate "2022.08.10"]
[EventType "tourn"]
[EventCountry "GER"]
[SourceTitle "playchess.com"]
[Source "ChessBase"]
[SourceQuality "1"]
[TimeControl "180+2"]

1. d4 {[%emt 0:00:01]} d6 {[%emt 0:00:01]} 2. Nf3 {[%emt 0:00:02]} g6 {[%emt 0:00:01]} 3. g3 {[%emt 0:00:01]} Bg7 {[%emt 0:00:01]} 4. Bg2 {[%emt 0:00:01]} Nd7 {[%emt 0:00:02]} 5. O-O {[%emt 0:00:03]} e5 {[%emt 0:00:03]} 6. dxe5 {[%emt 0:00:02]} dxe5 {[%emt 0:00:01]} 7. c3 {[%emt 0:00:03]} Ne7 {[%emt 0:00:03]} 8. Nbd2 {[%emt 0:00:03]} O-O {[%emt 0:00:02]} 9. e4 {[%emt 0:00:02]} h6 {[%emt 0:00:02]} 10. Qc2 {[%emt 0:00:02]} c6 {[%emt 0:00:13]} 11. a4 {[%emt 0:00:06]} Qc7 {[%emt 0:00:07]} 12. b3 {[%emt 0:00:04]} f5 {[%emt 0:00:07]} 13. Ba3 {[%emt 0:00:06]} Rf7 {[%emt 0:00:16]} 14. Rad1 {[%emt 0:00:14]} Nf6 {[%emt 0:00:24]} 15. Nh4 {[%emt 0:00:17]} Kh7 {[%emt 0:00:10]} 16. Bxe7 {[%emt 0:00:35]} Qxe7 {[%emt 0:00:01]} 17. exf5 {[%emt 0:00:02]} g5 {[%emt 0:00:15]} 18. Ng6 {[%emt 0:00:38]} Qc7 {[%emt 0:00:01]} 19. Nc4 {[%emt 0:00:10]} Ne8 {[%emt 0:00:12]} 20. f6 {[%emt 0:00:34]} Rxf6 {[%emt 0:00:13]} 21. Ngxe5+ {[%emt 0:00:07]} Bf5 {[%emt 0:00:03]} 22. Be4 {[%emt 0:00:04]} Bxe4 {[%emt 0:00:17]} 23. Qxe4+ {[%emt 0:00:01]} Kg8 {[%emt 0:00:01]} 24. Rd7 {[%emt 0:00:04]} Qc8 {[%emt 0:00:12]} 25. Rfd1 {[%emt 0:00:00]} Rf8 {[%emt 0:00:17]} 26. Qg6 {[%emt 0:00:07]} b5 {[%emt 0:00:11]} 27. Qe6+ {[%emt 0:00:08]} Kh7 {[%emt 0:00:02]} 28. Nd6 {[%emt 0:00:11]} Rf6 {[%emt 0:00:08]} 29. Qe7 {[%emt 0:00:06]} Rxd6 {[%emt 0:00:14]} 30. R1xd6 {[%emt 0:00:02]} bxa4 {[%emt 0:00:06]} 31. Rd8 {[%emt 0:00:01]} Nxd6 {[%emt 0:00:12]} 32. Rxc8 {[%emt 0:00:03]} Nxc8 {[%emt 0:00:01]} 33. Qf7 {[%emt 0:00:01]} Nd6 {[%emt 0:00:02]} 34. Qe6 {[%emt 0:00:01]} Rd8 {[%emt 0:00:02]} 35. Qg6+ {[%emt 0:00:02]} Kg8 {[%emt 0:00:01]} 36. bxa4 {[%emt 0:00:02]} Kf8 37. Nxc6 Rd7 1-0